fUSD/lending_fUSD_20260509
["ID","MTS","AMOUNT","RATE_DAILY","PERIOD"]
[421878714,1778267917000,-300.0,0.000117,2]
[421878713,1778267917000,-1200.0,0.000117,2]
[421878724,1778267917000,-151.0,0.00011997,2]
[421878712,1778267917000,-250.0,0.00011641,2]
[421878711,1778267917000,-300.0,0.00011581,2]
[421878718,1778267917000,-177.372,0.0001176,2]
[421878722,1778267917000,-3385.03503673,0.000119,2]
[421878738,1778267917000,-500.0,0.00011999,2]
[421878729,1778267917000,-500.0,0.00011999,2]
[421878726,1778267917000,-1000.0,0.00011999,2]
[421878740,1778267917000,-500.0,0.00011999,2]
[421878737,1778267917000,-500.0,0.00011999,2]
[421878739,1778267917000,-500.0,0.00011999,2]
[421878736,1778267917000,-500.0,0.00011999,2]
[421878732,1778267917000,-371.14352449,0.00011999,2]
[421878741,1778267917000,-500.0,0.00011999,2]
[421878734,1778267917000,-409.70574832,0.00011999,2]
[421878731,1778267917000,-500.0,0.00011999,2]
[421878733,1778267917000,-500.0,0.00011999,2]
[421878727,1778267917000,-176.0157358,0.00011999,2]
[421878730,1778267917000,-163.91931797,0.00011999,2]
[421878728,1778267917000,-153.92186525,0.00011999,2]
[421878735,1778267917000,-500.0,0.00011999,2]
[421878743,1778267918000,-500.0,0.00011999,2]
[421878742,1778267918000,-500.0,0.00011999,2]
[421878746,1778267918000,-500.0,0.00011999,2]
[421878745,1778267918000,-500.0,0.00011999,2]
[421878744,1778267918000,-500.0,0.00011999,2]
[421878749,1778267918000,-500.0,0.00011999,2]
[421878748,1778267918000,-500.0,0.00011999,2]
[421878750,1778267918000,-500.0,0.00011999,2]
[421878751,1778267918000,-500.0,0.00011999,2]
[421878752,1778267918000,-500.0,0.00011999,2]
[421878753,1778267918000,-132.61368969,0.00011999,2]
[421878747,1778267918000,-500.0,0.00011999,2]
[421878754,1778268077000,-152.0,0.00011817,2]
[421878756,1778268077000,-158.72,0.00011817,2]
[421878755,1778268077000,-157.66,0.00011817,2]
[421878757,1778268214000,156.17,5.873e-05,2]
[421878758,1778268215000,156.17,8.809e-05,2]
[421878759,1778268493000,-150.0,0.00011169,2]
[421878782,1778268632000,-3740.22377881,0.000119,2]
[421878787,1778268632000,-1088.132,0.00011999,2]
[421878788,1778268632000,-233.80199671,0.00011999,2]
[421878785,1778268632000,-1001.85202506,0.00011998,2]
[421878786,1778268632000,-500.0,0.00011999,2]
[421878789,1778268632000,-229.47341453,0.00011999,2]
[421878790,1778268632000,-150.0,0.00011999,2]
[421878791,1778268632000,-273.83345075,0.00011999,2]
[421878792,1778268632000,-612.13425626,0.00011999,2]
[421878804,1778268632000,-500.0,0.00011999,2]
[421878803,1778268632000,-500.0,0.00011999,2]
[421878805,1778268632000,-500.0,0.00011999,2]
[421878784,1778268632000,-1620.50755074,0.0001199,2]
[421878798,1778268632000,-623.13248262,0.00011999,2]
[421878800,1778268632000,-500.0,0.00011999,2]
[421878794,1778268632000,-500.75333198,0.00011999,2]
[421878796,1778268632000,-500.0,0.00011999,2]
[421878807,1778268632000,-500.0,0.00011999,2]
[421878806,1778268632000,-500.0,0.00011999,2]
[421878802,1778268632000,-250.0,0.00011999,2]
[421878783,1778268632000,-287.10257002,0.0001194,2]
[421878765,1778268632000,-300.0,0.00011169,2]
[421878779,1778268632000,-1002.4750944,0.00011816,2]
[421878808,1778268632000,-500.0,0.00011999,2]
[421878761,1778268632000,-871.54149594,0.00011159,2]
[421878762,1778268632000,-166.88945014,0.00011164,2]
[421878763,1778268632000,-1200.0,0.00011169,2]
[421878766,1778268632000,-300.0,0.00011169,2]
[421878767,1778268632000,-300.0,0.00011169,2]
[421878764,1778268632000,-300.0,0.00011169,2]
[421878768,1778268632000,-292.22,0.00011227,2]
[421878769,1778268632000,-250.0,0.00011332,2]
[421878770,1778268632000,-36.1135003,0.00011437,2]
[421878771,1778268632000,-1053.71656762,0.00011437,2]
[421878772,1778268632000,-2319.15993208,0.00011437,2]
[421878773,1778268632000,-2191.35,0.00011481,2]
[421878774,1778268632000,-150.0,0.00011583,2]
[421878775,1778268632000,-21184.86,0.00011584,2]
[421878778,1778268632000,-156.17,0.00011745,2]
[421878777,1778268632000,-200.0,0.00011604,2]
[421878776,1778268632000,-160.28533186,0.00011584,2]
[421878781,1778268632000,-17463.41334505,0.0001189,2]
[421878780,1778268632000,-169.25,0.00011878,2]
[421878810,1778268632000,-500.0,0.00011999,2]
[421878839,1778268632000,-500.0,0.00011999,2]
[421878811,1778268632000,-500.0,0.00011999,2]
[421878841,1778268632000,-500.0,0.00011999,2]
[421878842,1778268632000,-500.0,0.00011999,2]
[421878836,1778268632000,-500.0,0.00011999,2]
[421878840,1778268632000,-500.0,0.00011999,2]
[421878809,1778268632000,-500.0,0.00011999,2]
[421878854,1778268632000,-6357.548083,0.00012,2]
[421878838,1778268632000,-500.0,0.00011999,2]
[421878834,1778268632000,-466.56369554,0.00011999,2]
[421878843,1778268632000,-500.0,0.00011999,2]
[421878845,1778268632000,-500.0,0.00011999,2]
[421878844,1778268632000,-500.0,0.00011999,2]
[421878847,1778268632000,-500.0,0.00011999,2]
[421878846,1778268632000,-550.0,0.00011999,2]
[421878850,1778268632000,-500.0,0.00011999,2]
[421878848,1778268632000,-500.0,0.00011999,2]
[421878851,1778268632000,-500.0,0.00011999,2]
[421878852,1778268632000,-500.0,0.00011999,2]
[421878853,1778268632000,-179024.47501242,0.00012,2]
[421878849,1778268632000,-500.0,0.00011999,2]
[421878835,1778268632000,-500.0,0.00011999,2]
[421878833,1778268632000,-500.0,0.00011999,2]
[421878837,1778268632000,-500.0,0.00011999,2]
[421878832,1778268632000,-500.0,0.00011999,2]
[421878812,1778268632000,-500.0,0.00011999,2]
[421878813,1778268632000,-500.0,0.00011999,2]
[421878831,1778268632000,-500.0,0.00011999,2]
[421878814,1778268632000,-500.0,0.00011999,2]
[421878815,1778268632000,-500.0,0.00011999,2]
[421878817,1778268632000,-500.0,0.00011999,2]
[421878816,1778268632000,-500.0,0.00011999,2]
[421878819,1778268632000,-500.0,0.00011999,2]
[421878820,1778268632000,-500.0,0.00011999,2]
[421878818,1778268632000,-500.0,0.00011999,2]
[421878826,1778268632000,-500.0,0.00011999,2]
[421878827,1778268632000,-500.0,0.00011999,2]
[421878829,1778268632000,-500.0,0.00011999,2]
[421878830,1778268632000,-500.0,0.00011999,2]
[421878822,1778268632000,-500.0,0.00011999,2]
[421878823,1778268632000,-500.0,0.00011999,2]
[421878821,1778268632000,-500.0,0.00011999,2]
[421878824,1778268632000,-500.0,0.00011999,2]
[421878825,1778268632000,-500.0,0.00011999,2]
[421878828,1778268632000,-500.0,0.00011999,2]
[421878855,1778268634000,165.63,8.914e-05,2]
[421878864,1778268638000,-372.69627741,0.00011999,2]
[421878863,1778268638000,-464.74352258,0.00011999,2]
[421878862,1778268638000,-500.0,0.00011999,2]
[421878868,1778268638000,-26916.78660403,0.00012,2]
[421878865,1778268638000,-87.10418974,0.00011999,2]
[421878867,1778268638000,-34535.09049077,0.00012,2]
[421878869,1778268638000,-380.52932165,0.00012,2]
[421878866,1778268638000,-209.25997392,0.00011999,2]
[421879062,1778268640000,-30.07801739,0.00011939,2]
[421879479,1778268643000,-511246.72590759,0.00012,2]
[421879481,1778268643000,-9191.22458216,0.00012,2]
[421879476,1778268643000,-10679.57107961,0.00011939,2]
[421879864,1778268646000,-0.49999995,0.00012,2]
[421879895,1778268646000,-1084.3,0.00012,2]
[421879867,1778268646000,-11783.60119497,0.00012,2]
[421879891,1778268646000,-4265.47335082,0.00012,2]
[421880126,1778268907000,150.0,0.00011875,3]
[421880127,1778268973000,152.0,0.00012015,30]
[421880131,1778269002000,150.15,9.31e-05,2]
[421880130,1778269002000,150.15,8.276e-05,2]
[421880129,1778269002000,150.15,7.241e-05,2]
[421880128,1778269002000,150.15,6.207e-05,2]
[421880132,1778269092000,3317.2106336,0.00030136,120]
[421880133,1778269291000,170.0,0.000226,120]
[421880134,1778269701000,-150.15,0.00010345,2]
[421880135,1778269701000,-5.681201,0.0001054,2]
[421880136,1778269711000,227.6,8.554e-05,2]
[421880137,1778269729000,2007.62,9.879e-05,2]
[421880138,1778269735000,17126.73,9.879e-05,2]
[421880177,1778269832000,-200.0,0.00011448,2]
[421880166,1778269832000,-250.0,0.00011379,2]
[421880191,1778269832000,-500.0,0.00011836,2]
[421880172,1778269832000,-7309.57,0.00011426,2]
[421880170,1778269832000,-870.506,0.00011425,2]
[421880178,1778269832000,-792.38,0.00011474,2]
[421880164,1778269832000,-1513.0835568,0.00011379,2]
[421880181,1778269832000,-500.0,0.00011594,2]
[421880187,1778269832000,-232.0,0.00011753,2]
[421880195,1778269832000,-14347.74275024,0.000119,2]
[421880199,1778269832000,-19533.15456968,0.000119,2]
[421880197,1778269832000,-16631.71296875,0.000119,2]
[421880201,1778269832000,-165.7905639,0.0001194,2]
[421880182,1778269832000,-500.0,0.00011616,2]
[421880175,1778269832000,-5970.99,0.00011442,2]
[421880184,1778269832000,-792.38,0.00011741,2]
[421880189,1778269832000,-166.66,0.00011821,2]
[421880193,1778269832000,-1000.0,0.00011899,2]
[421880168,1778269832000,-250.0,0.00011379,2]
[421880152,1778269832000,-150.0,0.00010959,2]
[421880156,1778269832000,-150.0,0.00011226,2]
[421880140,1778269832000,-265.84703492,0.0001054,2]
[421880141,1778269832000,-17.11728196,0.0001054,2]
[421880143,1778269832000,-1031.85541838,0.00010719,2]
[421880146,1778269832000,-300.0,0.00010911,2]
[421880144,1778269832000,-2000.0,0.00010735,2]
[421880142,1778269832000,-792.38,0.00010674,2]
[421880145,1778269832000,-1236.79,0.00010873,2]
[421880147,1778269832000,-300.0,0.00010911,2]
[421880160,1778269832000,-150.15,0.00011379,2]
[421880148,1778269832000,-1200.0,0.00010911,2]
[421880151,1778269832000,-792.38,0.00010941,2]
[421880153,1778269832000,-167.5996884,0.00011119,2]
[421880154,1778269832000,-167.5996884,0.00011199,2]
[421880150,1778269832000,-17572.82,0.00010912,2]
[421880155,1778269832000,-792.38,0.00011207,2]
[421880159,1778269832000,-18583.75,0.00011372,2]
[421880158,1778269832000,-500.0,0.00011322,2]
[421880157,1778269832000,-167.5996884,0.00011279,2]
[421880149,1778269832000,-300.0,0.00010911,2]
[421880203,1778269832000,-193.0,0.00011991,2]
[421880221,1778269832000,-500.0,0.00011999,2]
[421880207,1778269832000,-151.0,0.00011997,2]
[421880257,1778269832000,-500.0,0.0001211,2]
[421880270,1778269832000,-200.0,0.00012364,2]
[421880260,1778269832000,-500.0,0.0001212,2]
[421880258,1778269832000,-200.0,0.0001212,2]
[421880274,1778269832000,-150.15,0.00012414,2]
[421880276,1778269832000,-163.1,0.00012465,2]
[421880272,1778269832000,-250.0,0.00012405,2]
[421880263,1778269832000,-350.0,0.00012155,2]
[421880255,1778269832000,-2546.3266,0.00012082,2]
[421880265,1778269832000,-200.0,0.00012241,2]
[421880278,1778269832000,-166.66,0.00012472,2]
[421880282,1778269832000,-500.0,0.00012473,2]
[421880285,1778269832000,-500.0,0.00012473,2]
[421880287,1778269832000,-501.06970518,0.00012473,2]
[421880289,1778269832000,-505.68510712,0.00012473,2]
[421880291,1778269832000,-500.0,0.00012473,2]
[421880293,1778269832000,-200.0,0.00012487,2]
[421880205,1778269832000,-420.0,0.00011991,2]
[421880266,1778269832000,-255.0,0.00012281,2]
[421880240,1778269832000,-193.0241788,0.00011999,2]
[421880280,1778269832000,-500.0,0.00012473,2]
[421880251,1778269832000,-493.10997481,0.00012071,2]
[421880209,1778269832000,-151.0,0.00011997,2]
[421880238,1778269832000,-500.0,0.00011999,2]
[421880211,1778269832000,-5224.41743353,0.00011999,2]
[421880213,1778269832000,-245.67759901,0.00011999,2]
[421880219,1778269832000,-500.0,0.00011999,2]
[421880215,1778269832000,-500.0,0.00011999,2]
[421880225,1778269832000,-500.0,0.00011999,2]
[421880229,1778269832000,-500.0,0.00011999,2]
[421880223,1778269832000,-500.0,0.00011999,2]
[421880217,1778269832000,-404.55070039,0.00011999,2]
[421880231,1778269832000,-533.8736178,0.00011999,2]
[421880242,1778269832000,-549275.37668051,0.00012,2]
[421880235,1778269832000,-500.0,0.00011999,2]
[421880246,1778269832000,-200.0,0.00012,2]
[421880233,1778269832000,-231.417589,0.00011999,2]
[421880244,1778269832000,-340.00097207,0.00012,2]
[421880253,1778269832000,-2000.0,0.00012076,2]
[421880227,1778269832000,-500.0,0.00011999,2]
[421880248,1778269832000,-1680.0,0.00012002,2]
[421880340,1778269833000,-151.0,0.00012672,2]
[421880341,1778269833000,-151.0,0.00012672,2]
[421880335,1778269833000,-151.0,0.00012672,2]
[421880336,1778269833000,-215.54783624,0.00012672,2]
[421880331,1778269833000,-151.0,0.00012672,2]
[421880339,1778269833000,-151.0,0.00012672,2]
[421880333,1778269833000,-151.0,0.00012672,2]
[421880334,1778269833000,-151.0,0.00012672,2]
[421880338,1778269833000,-151.0,0.00012672,2]
[421880342,1778269833000,-151.0,0.00012737,2]
[421880337,1778269833000,-151.0,0.00012672,2]
[421880345,1778269833000,-1000.0,0.00013021,2]
[421880354,1778269833000,-166.66,0.00013122,2]
[421880346,1778269833000,-1000.0,0.00013021,2]
[421880347,1778269833000,-1000.0,0.00013021,2]
[421880350,1778269833000,-151.0,0.0001305,2]
[421880349,1778269833000,-19533.15456961,0.00013039,2]
[421880348,1778269833000,-151.0,0.00013039,2]
[421880351,1778269833000,-151.0,0.0001305,2]
[421880352,1778269833000,-151.0,0.0001305,2]
[421880358,1778269833000,-2000.0,0.00013418,2]
[421880353,1778269833000,-16631.71296874,0.0001305,2]
[421880355,1778269833000,-587.0,0.00013178,2]
[421880356,1778269833000,-350.0,0.00013197,2]
[421880343,1778269833000,-350.0,0.0001285,2]
[421880344,1778269833000,-500.0,0.00013021,2]
[421880332,1778269833000,-151.0,0.00012672,2]
[421880317,1778269833000,-151.0,0.00012672,2]
[421880329,1778269833000,-151.0,0.00012672,2]
[421880357,1778269833000,-2351.0,0.00013202,2]
[421880298,1778269833000,-270.0,0.00012605,2]
[421880294,1778269833000,-80291.84,0.0001249,2]
[421880296,1778269833000,-350.0,0.00012502,2]
[421880301,1778269833000,-689.93,0.00012616,2]
[421880313,1778269833000,-151.0,0.00012672,2]
[421880316,1778269833000,-151.0,0.00012672,2]
[421880314,1778269833000,-500.0,0.00012672,2]
[421880302,1778269833000,-151.0,0.00012634,2]
[421880315,1778269833000,-151.0,0.00012672,2]
[421880311,1778269833000,-151.0,0.00012672,2]
[421880309,1778269833000,-500.0,0.00012672,2]
[421880327,1778269833000,-151.0,0.00012672,2]
[421880305,1778269833000,-156.587,0.00012634,2]
[421880307,1778269833000,-172.8,0.00012665,2]
[421880318,1778269833000,-151.0,0.00012672,2]
[421880319,1778269833000,-151.0,0.00012672,2]
[421880321,1778269833000,-151.0,0.00012672,2]
[421880324,1778269833000,-500.0,0.00012672,2]
[421880323,1778269833000,-151.0,0.00012672,2]
[421880322,1778269833000,-500.0,0.00012672,2]
[421880325,1778269833000,-151.0,0.00012672,2]
[421880320,1778269833000,-151.0,0.00012672,2]
[421880330,1778269833000,-500.0,0.00012672,2]
[421880328,1778269833000,-500.0,0.00012672,2]
[421880326,1778269833000,-500.0,0.00012672,2]
[421880306,1778269833000,-197.49432318,0.00012634,2]
[421880359,1778269833000,-433.0,0.00013437,2]
[421880395,1778269833000,-5162.7751818,0.00014485,2]
[421880360,1778269833000,-391.2748952,0.00013568,2]
[421880390,1778269833000,-172.43213,0.00014272,2]
[421880393,1778269833000,-166.66,0.00014384,2]
[421880401,1778269833000,-172.8,0.00014776,2]
[421880397,1778269833000,-994.0,0.00014563,5]
[421880400,1778269833000,-2000.0,0.0001476,2]
[421880396,1778269833000,-3292.0,0.00014522,2]
[421880398,1778269833000,-808.77,0.00014636,2]
[421880418,1778269833000,-969073.35840371,0.00015,2]
[421880399,1778269833000,-736.0,0.00014694,2]
[421880403,1778269833000,-2000.0,0.0001485,2]
[421880410,1778269833000,-389.38690767,0.000149,2]
[421880406,1778269833000,-2000.0,0.0001485,2]
[421880392,1778269833000,-156.30737109,0.00014374,2]
[421880405,1778269833000,-2000.0,0.0001485,2]
[421880413,1778269833000,-977.0,0.00014997,5]
[421880407,1778269833000,-2000.0,0.0001485,2]
[421880404,1778269833000,-2000.0,0.0001485,2]
[421880409,1778269833000,-1520.81988841,0.000149,2]
[421880408,1778269833000,-2000.0,0.0001485,2]
[421880412,1778269833000,-1182.66999968,0.0001499,2]
[421880402,1778269833000,-350.0,0.00014798,2]
[421880416,1778269833000,-666.0,0.00014999,2]
[421880414,1778269833000,-159.0113123,0.00014997,2]
[421880417,1778269833000,-666.0,0.00014999,2]
[421880415,1778269833000,-300.0,0.00014999,2]
[421880361,1778269833000,-1500.0,0.00013568,2]
[421880411,1778269833000,-153.12137068,0.00014925,2]
[421880389,1778269833000,-500.0,0.00014252,2]
[421880394,1778269833000,-540.0,0.00014482,2]
[421880387,1778269833000,-16631.71296874,0.00014201,2]
[421880363,1778269833000,-503.53682658,0.00013698,2]
[421880362,1778269833000,-500.0,0.00013698,2]
[421880364,1778269833000,-500.0,0.00013698,2]
[421880366,1778269833000,-500.0,0.00013698,2]
[421880365,1778269833000,-500.0,0.00013698,2]
[421880367,1778269833000,-166.66,0.00013699,2]
[421880369,1778269833000,-1611.97,0.00013699,2]
[421880375,1778269833000,-166.66,0.00013772,2]
[421880372,1778269833000,-151.0,0.00013699,2]
[421880368,1778269833000,-200.0,0.00013699,2]
[421880391,1778269833000,-967.0,0.00014323,5]
[421880373,1778269833000,-150.0,0.00013744,2]
[421880370,1778269833000,-151.0,0.00013699,2]
[421880374,1778269833000,-500.0,0.00013744,2]
[421880376,1778269833000,-166.66,0.00013836,2]
[421880386,1778269833000,-270.0,0.00014181,2]
[421880371,1778269833000,-151.0,0.00013699,2]
[421880381,1778269833000,-250.0,0.00014,2]
[421880384,1778269833000,-5000.0,0.00014148,2]
[421880380,1778269833000,-166.66,0.00013973,2]
[421880383,1778269833000,-500.0,0.00014116,2]
[421880382,1778269833000,-166.66,0.0001411,2]
[421880379,1778269833000,-161.406684,0.00013963,2]
[421880388,1778269833000,-166.66,0.00014247,2]
[421880377,1778269833000,-228.22903857,0.00013843,2]
[421880378,1778269833000,-500.0,0.00013913,2]
[421880385,1778269833000,-19533.15456961,0.00014178,2]
[421880423,1778269834000,-1609.30073,0.00015,2]
[421880422,1778269834000,-753.07092822,0.00015,2]
[421880419,1778269834000,-177311.10656579,0.00015,2]
[421880420,1778269834000,-75231.03628899,0.00015,2]
[421880421,1778269834000,-52382.57612133,0.00015,2]
[421880437,1778269838000,-127477.62419475,0.00015,2]
[421880436,1778269838000,-82.92523086,0.00015,2]
[421880438,1778269838000,-580.29201335,0.00015,2]
[421880435,1778269838000,-170.00048604,0.0001485,2]
[421880440,1778269838000,-875.53141341,0.00015,2]
[421880441,1778269838000,-26916.78660403,0.00015,2]
[421880442,1778269838000,-380.52932165,0.00015,2]
[421880439,1778269838000,-6859.99277437,0.00015,2]
[421880463,1778269843000,-1082.55272606,0.00015,2]
[421880469,1778269846000,-3104.34482976,0.00015,2]
[421880468,1778269846000,-8037.01413756,0.00015,2]
[421880471,1778270037000,156.43,7.109e-05,2]
[421880478,1778271033000,-300.0,0.00011999,2]
[421880476,1778271033000,-210.67973265,0.00011899,2]
[421880477,1778271033000,-1200.0,0.00011998,2]
[421880526,1778271034000,-380.57,0.0001343,2]
[421880528,1778271034000,-150.0,0.00013451,2]
[421880541,1778271034000,-2000.0,0.00013526,2]
[421880539,1778271034000,-150.0,0.00013508,2]
[421880524,1778271034000,-150.0,0.00013423,2]
[421880533,1778271034000,-1894.8536126,0.00013472,2]
[421880537,1778271034000,-150.0,0.00013508,2]
[421880535,1778271034000,-150.0,0.00013479,2]
[421880530,1778271034000,-162.0,0.00013454,2]
[421880543,1778271034000,-150.0,0.00013536,2]
[421880520,1778271034000,-150.0,0.00013395,2]
[421880522,1778271034000,-2427.18,0.00013423,2]
[421880545,1778271034000,-150.0,0.00013564,2]
[421880555,1778271034000,-150.0,0.00013629,2]
[421880549,1778271034000,-1870.43,0.00013608,2]
[421880553,1778271034000,-150.0,0.0001362,2]
[421880557,1778271034000,-150.0,0.00013648,2]
[421880500,1778271034000,-150.0,0.00013227,2]
[421880559,1778271034000,-150.0,0.00013676,2]
[421880561,1778271034000,-172.8,0.00013684,2]
[421880551,1778271034000,-2007.62,0.00013608,2]
[421880563,1778271034000,-150.0,0.0001369,2]
[421880565,1778271034000,-172.23,0.00013699,2]
[421880569,1778271034000,-150.0,0.00013732,2]
[421880567,1778271034000,-150.0,0.00013704,2]
[421880571,1778271034000,-281.76,0.0001375,2]
[421880586,1778271034000,-172.23,0.0001387,2]
[421880547,1778271034000,-150.0,0.00013592,2]
[421880506,1778271034000,-150.0,0.00013311,2]
[421880518,1778271034000,-150.0,0.00013367,2]
[421880504,1778271034000,-166.15,0.00013297,2]
[421880578,1778271034000,-500.0,0.0001378,2]
[421880479,1778271034000,-150.0,0.00011999,2]
[421880480,1778271034000,-300.0,0.00011999,2]
[421880483,1778271034000,-55212.26435409,0.00012,2]
[421880481,1778271034000,-300.0,0.00011999,2]
[421880482,1778271034000,-250.0,0.00011999,2]
[421880484,1778271034000,-34356.33819795,0.00012523,2]
[421880485,1778271034000,-157.37,0.00012852,2]
[421880487,1778271034000,-255.0,0.00013079,2]
[421880486,1778271034000,-10281.99,0.00012918,2]
[421880488,1778271034000,-380.57,0.00013102,2]
[421880489,1778271034000,-150.0,0.00013142,2]
[421880491,1778271034000,-150.0,0.00013142,2]
[421880502,1778271034000,-150.0,0.00013283,2]
[421880492,1778271034000,-150.0,0.00013142,2]
[421880497,1778271034000,-1680.0,0.00013198,2]
[421880496,1778271034000,-150.0,0.00013171,2]
[421880494,1778271034000,-150.0,0.00013142,2]
[421880495,1778271034000,-1944.55311545,0.00013163,2]
[421880493,1778271034000,-150.0,0.00013142,2]
[421880499,1778271034000,-250.0,0.00013199,2]
[421880510,1778271034000,-150.0,0.00013325,2]
[421880512,1778271034000,-150.0,0.00013339,2]
[421880514,1778271034000,-500.0,0.00013341,2]
[421880516,1778271034000,-981.53378044,0.00013352,2]
[421880508,1778271034000,-150.0,0.00013312,2]
[421880501,1778271034000,-150.0,0.00013255,2]
[421880498,1778271034000,-150.0,0.00013199,2]
[421880490,1778271034000,-151.74412025,0.00013142,2]
[421880590,1778271034000,-150.0,0.00013873,2]
[421880604,1778271034000,-150.0,0.00013957,2]
[421880576,1778271034000,-150.0,0.0001376,2]
[421880650,1778271034000,-508.0372081,0.00014064,2]
[421880652,1778271034000,-500.0,0.00014064,2]
[421880654,1778271034000,-150.0,0.00014064,2]
[421880653,1778271034000,-500.0,0.00014064,2]
[421880655,1778271034000,-500.0,0.00014064,2]
[421880657,1778271034000,-500.0,0.00014064,2]
[421880660,1778271034000,-500.0,0.00014064,2]
[421880658,1778271034000,-500.0,0.00014064,2]
[421880661,1778271034000,-500.0,0.00014064,2]
[421880659,1778271034000,-500.0,0.00014064,2]
[421880656,1778271034000,-500.0,0.00014064,2]
[421880663,1778271034000,-500.0,0.00014064,2]
[421880662,1778271034000,-500.0,0.00014064,2]
[421880648,1778271034000,-500.0,0.00014064,2]
[421880665,1778271034000,-500.0,0.00014064,2]
[421880664,1778271034000,-500.0,0.00014064,2]
[421880672,1778271034000,-150.0,0.00014064,2]
[421880671,1778271034000,-500.0,0.00014064,2]
[421880666,1778271034000,-500.0,0.00014064,2]
[421880670,1778271034000,-500.0,0.00014064,2]
[421880667,1778271034000,-500.0,0.00014064,2]
[421880668,1778271034000,-500.0,0.00014064,2]
[421880669,1778271034000,-150.0,0.00014064,2]
[421880674,1778271034000,-500.0,0.00014064,2]
[421880588,1778271034000,-200.0,0.00013871,2]
[421880677,1778271034000,-156.71517305,0.00014064,2]
[421880678,1778271034000,-500.0,0.00014064,2]
[421880675,1778271034000,-150.0,0.00014064,2]
[421880673,1778271034000,-500.0,0.00014064,2]
[421880646,1778271034000,-500.0,0.00014064,2]
[421880676,1778271034000,-500.0,0.00014064,2]
[421880642,1778271034000,-500.0,0.00014064,2]
[421880644,1778271034000,-500.0,0.00014064,2]
[421880580,1778271034000,-150.0,0.00013788,2]
[421880584,1778271034000,-150.0,0.00013845,2]
[421880574,1778271034000,-380.57,0.00013758,2]
[421880593,1778271034000,-150.0,0.00013873,2]
[421880595,1778271034000,-150.0,0.00013873,2]
[421880597,1778271034000,-150.0,0.00013901,2]
[421880599,1778271034000,-150.0,0.00013929,2]
[421880601,1778271034000,-500.0,0.00013948,2]
[421880606,1778271034000,-150.0,0.00013985,2]
[421880609,1778271034000,-150.0,0.00014013,2]
[421880608,1778271034000,-250.0,0.00014,2]
[421880618,1778271034000,-500.0,0.00014064,2]
[421880582,1778271034000,-150.0,0.00013816,2]
[421880612,1778271034000,-172.23,0.00014041,2]
[421880640,1778271034000,-500.0,0.00014064,2]
[421880616,1778271034000,-150.0,0.00014055,2]
[421880624,1778271034000,-500.0,0.00014064,2]
[421880634,1778271034000,-500.0,0.00014064,2]
[421880636,1778271034000,-500.0,0.00014064,2]
[421880630,1778271034000,-500.0,0.00014064,2]
[421880632,1778271034000,-500.0,0.00014064,2]
[421880628,1778271034000,-500.0,0.00014064,2]
[421880620,1778271034000,-500.0,0.00014064,2]
[421880638,1778271034000,-500.0,0.00014064,2]